[Event "Titled Tuesday Blitz March 29 Early 2022"]
[White "Kobalia, Mikhail"]
[Black "Matlakov, Maxim"]
[WhiteFideId "4119150"]
[BlackFideId "4168003"]
[WhiteElo "2667"]
[BlackElo "2669"]
[Result "0-1"]
[Round "11"]
[TimeControl "180+1"]
[Date "2022.03.29"]
[WhiteClock "0:00:03"]
[BlackClock "0:00:22"]

1. e4 {[%clk 0:03:00]}  c5 {[%clk 0:02:59]} 2. Nf3 {[%clk 0:03:00]}  d6 {[%clk 0:03:00]} 3. d4 {[%clk 0:03:00]}  cxd4 {[%clk 0:03:00]} 4. Nxd4 {[%clk 0:03:01]}  Nf6 {[%clk 0:03:00]} 5. Nc3 {[%clk 0:03:02]}  a6 {[%clk 0:03:01]} 6. Be3 {[%clk 0:03:02]}  e5 {[%clk 0:02:59]} 7. Nb3 {[%clk 0:03:02]}  Be7 {[%clk 0:02:59]} 8. Qd2 {[%clk 0:03:03]}  Ng4 {[%clk 0:02:58]} 9. g3 {[%clk 0:02:58]}  Nxe3 {[%clk 0:02:56]} 10. Qxe3 {[%clk 0:02:58]}  Be6 {[%clk 0:02:53]} 11. O-O-O {[%clk 0:02:57]}  O-O {[%clk 0:02:49]} 12. Kb1 {[%clk 0:02:56]}  Nc6 {[%clk 0:02:38]} 13. f4 {[%clk 0:02:56]}  b5 {[%clk 0:02:23]} 14. f5 {[%clk 0:02:56]}  Bc8 {[%clk 0:02:23]} 15. Nd5 {[%clk 0:02:56]}  Bg5 {[%clk 0:02:20]} 16. Qf2 {[%clk 0:02:53]}  Bb7 {[%clk 0:02:01]} 17. h4 {[%clk 0:02:52]}  Bh6 {[%clk 0:02:02]} 18. c4 {[%clk 0:02:10]}  bxc4 {[%clk 0:01:52]} 19. Bxc4 {[%clk 0:02:09]}  a5 {[%clk 0:01:52]} 20. Qb6 {[%clk 0:01:33]}  Qb8 {[%clk 0:01:31]} 21. Nc7 {[%clk 0:01:15]}  Nb4 {[%clk 0:01:26]} 22. Bd5 {[%clk 0:00:34]}  Nxd5 {[%clk 0:01:01]} 23. exd5 {[%clk 0:00:34]}  a4 {[%clk 0:01:01]} 24. Na5 {[%clk 0:00:26]}  Bxd5 {[%clk 0:00:48]} 25. Nxd5 {[%clk 0:00:26]}  Qxb6 {[%clk 0:00:47]} 26. Nxb6 {[%clk 0:00:26]}  Rxa5 {[%clk 0:00:48]} 27. Rxd6 {[%clk 0:00:26]}  e4 {[%clk 0:00:46]} 28. g4 {[%clk 0:00:25]}  Bf4 {[%clk 0:00:45]} 29. Rd5 {[%clk 0:00:23]}  Ra6 {[%clk 0:00:39]} 30. Nd7 {[%clk 0:00:22]}  Re8 {[%clk 0:00:36]} 31. Nc5 {[%clk 0:00:22]}  Ra5 {[%clk 0:00:36]} 32. Rhd1 {[%clk 0:00:20]}  e3 {[%clk 0:00:35]} 33. Rd8 {[%clk 0:00:14]}  Kf8 {[%clk 0:00:36]} 34. Rxe8+ {[%clk 0:00:12]}  Kxe8 {[%clk 0:00:36]} 35. Nd3 {[%clk 0:00:12]}  Bg3 {[%clk 0:00:36]} 36. Rg1 {[%clk 0:00:10]}  Bxh4 {[%clk 0:00:36]} 37. Rh1 {[%clk 0:00:10]}  Bg5 {[%clk 0:00:29]} 38. Rxh7 {[%clk 0:00:07]}  Rd5 {[%clk 0:00:28]} 39. Kc2 {[%clk 0:00:07]}  e2 {[%clk 0:00:23]} 40. Rh2 {[%clk 0:00:03]}  Rxd3 {[%clk 0:00:22]} 0-1


[Site "https://www.chess.com"]

[Event "Titled Tuesday Blitz March 29 Early 2022"]
[White "Kosteniuk, Alexandra"]
[Black "Reprintsev, Alexander"]
[WhiteFideId "4128125"]
[BlackFideId "14100541"]
[WhiteElo "2469"]
[BlackElo "2108"]
[Result "1/2-1/2"]
[Round "11"]
[TimeControl "180+1"]
[Date "2022.03.29"]
[WhiteClock "0:00:09"]
[BlackClock "0:00:07"]

1. e4 {[%clk 0:03:00]}  d5 {[%clk 0:02:59]} 2. exd5 {[%clk 0:03:00]}  Qxd5 {[%clk 0:02:57]} 3. Nc3 {[%clk 0:03:01]}  Qa5 {[%clk 0:02:57]} 4. d4 {[%clk 0:03:01]}  Nf6 {[%clk 0:02:57]} 5. Nf3 {[%clk 0:03:01]}  Nc6 {[%clk 0:02:57]} 6. Bb5 {[%clk 0:02:58]}  Ne4 {[%clk 0:02:57]} 7. Qd3 {[%clk 0:02:39]}  Nxc3 {[%clk 0:02:57]} 8. bxc3 {[%clk 0:02:39]}  a6 {[%clk 0:02:57]} 9. Bxc6+ {[%clk 0:02:36]}  bxc6 {[%clk 0:02:58]} 10. O-O {[%clk 0:02:35]}  Bf5 {[%clk 0:02:57]} 11. Qe2 {[%clk 0:02:26]}  e6 {[%clk 0:02:56]} 12. c4 {[%clk 0:01:54]}  Be7 {[%clk 0:02:52]} 13. Bd2 {[%clk 0:01:49]}  Qa4 {[%clk 0:02:52]} 14. c3 {[%clk 0:01:47]}  O-O {[%clk 0:02:51]} 15. h3 {[%clk 0:01:42]}  Rab8 {[%clk 0:02:50]} 16. Bf4 {[%clk 0:01:34]}  Bd6 {[%clk 0:02:48]} 17. Bg5 {[%clk 0:01:25]}  h6 {[%clk 0:02:47]} 18. Be3 {[%clk 0:01:20]}  Qa3 {[%clk 0:02:40]} 19. c5 {[%clk 0:01:15]}  Be7 {[%clk 0:02:39]} 20. Ne5 {[%clk 0:01:15]}  Rb2 {[%clk 0:02:23]} 21. Qf3 {[%clk 0:01:14]}  Rxa2 {[%clk 0:02:03]} 22. Rxa2 {[%clk 0:01:13]}  Qxa2 {[%clk 0:02:03]} 23. Qxc6 {[%clk 0:01:09]}  Qa5 {[%clk 0:02:00]} 24. c4 {[%clk 0:00:55]}  f6 {[%clk 0:01:27]} 25. Nf3 {[%clk 0:00:47]}  Rf7 {[%clk 0:01:26]} 26. d5 {[%clk 0:00:46]}  exd5 {[%clk 0:01:21]} 27. cxd5 {[%clk 0:00:47]}  Bf8 {[%clk 0:01:18]} 28. Nd4 {[%clk 0:00:32]}  Bd7 {[%clk 0:01:17]} 29. Qa8 {[%clk 0:00:32]}  Qxc5 {[%clk 0:01:15]} 30. Ne6 {[%clk 0:00:32]}  Qc4 {[%clk 0:00:49]} 31. Bc5 {[%clk 0:00:32]}  Bxe6 {[%clk 0:00:47]} 32. dxe6 {[%clk 0:00:32]}  Qxe6 {[%clk 0:00:42]} 33. Rd1 {[%clk 0:00:30]}  Qc4 {[%clk 0:00:23]} 34. Ba3 {[%clk 0:00:23]}  Qb3 {[%clk 0:00:22]} 35. Ra1 {[%clk 0:00:20]}  g5 {[%clk 0:00:15]} 36. Qxa6 {[%clk 0:00:19]}  Kg7 {[%clk 0:00:14]} 37. Bxf8+ {[%clk 0:00:18]}  Rxf8 {[%clk 0:00:14]} 38. Qc6 {[%clk 0:00:18]}  Rf7 {[%clk 0:00:14]} 39. Rc1 {[%clk 0:00:16]}  Qd3 {[%clk 0:00:12]} 40. g3 {[%clk 0:00:16]}  Qd7 {[%clk 0:00:11]} 41. Qg2 {[%clk 0:00:14]}  Qe6 {[%clk 0:00:10]} 42. Rc6 {[%clk 0:00:14]}  Qe5 {[%clk 0:00:10]} 43. Qf3 {[%clk 0:00:14]}  Qd4 {[%clk 0:00:09]} 44. Kg2 {[%clk 0:00:14]}  Kg6 {[%clk 0:00:08]} 45. Rc3 {[%clk 0:00:12]}  h5 {[%clk 0:00:08]} 46. g4 {[%clk 0:00:12]}  hxg4 {[%clk 0:00:08]} 47. hxg4 {[%clk 0:00:13]}  Kg7 {[%clk 0:00:08]} 48. Rd3 {[%clk 0:00:13]}  Qe5 {[%clk 0:00:08]} 49. Rd8 {[%clk 0:00:12]}  Qe6 {[%clk 0:00:07]} 50. Rd4 {[%clk 0:00:12]}  Rd7 {[%clk 0:00:06]} 51. Re4 {[%clk 0:00:12]}  Qd5 {[%clk 0:00:05]} 52. Kg3 {[%clk 0:00:11]}  Qd6+ {[%clk 0:00:05]} 53. Kg2 {[%clk 0:00:11]}  Re7 {[%clk 0:00:05]} 54. Ra4 {[%clk 0:00:10]}  Qe6 {[%clk 0:00:05]} 55. Rd4 {[%clk 0:00:10]}  Qe5 {[%clk 0:00:05]} 56. Rd5 {[%clk 0:00:09]}  Qe4 {[%clk 0:00:05]} 57. Qxe4 {[%clk 0:00:09]}  Rxe4 {[%clk 0:00:05]} 58. Rd7+ {[%clk 0:00:10]}  Kg6 {[%clk 0:00:04]} 59. f3 {[%clk 0:00:10]}  Rc4 {[%clk 0:00:04]} 60. Kg3 {[%clk 0:00:10]}  Rc6 {[%clk 0:00:04]} 61. Re7 {[%clk 0:00:10]}  f5 {[%clk 0:00:05]} 62. gxf5+ {[%clk 0:00:10]}  Kxf5 {[%clk 0:00:05]} 63. Rf7+ {[%clk 0:00:11]}  Ke6 {[%clk 0:00:05]} 64. Rg7 {[%clk 0:00:11]}  Rc5 {[%clk 0:00:06]} 65. Kg4 {[%clk 0:00:10]}  Kf6 {[%clk 0:00:06]} 66. Rd7 {[%clk 0:00:10]}  Rc4+ {[%clk 0:00:06]} 67. Kg3 {[%clk 0:00:10]}  c5 {[%clk 0:00:06]} 68. Rd6+ {[%clk 0:00:09]}  Ke5 {[%clk 0:00:07]} 69. Rg6 {[%clk 0:00:09]}  Kf5 {[%clk 0:00:07]} 70. Rc6 {[%clk 0:00:08]}  Rc1 {[%clk 0:00:08]} 71. Rc8 {[%clk 0:00:07]}  c4 {[%clk 0:00:08]} 72. Rc5+ {[%clk 0:00:07]}  Kf6 {[%clk 0:00:07]} 73. Kg4 {[%clk 0:00:07]}  c3 {[%clk 0:00:08]} 74. Rc6+ {[%clk 0:00:05]}  Ke5 {[%clk 0:00:08]} 75. Kxg5 {[%clk 0:00:05]}  Rg1+ {[%clk 0:00:07]} 76. Kh6 {[%clk 0:00:03]}  Kd4 {[%clk 0:00:07]} 77. f4 {[%clk 0:00:04]}  Rf1 {[%clk 0:00:06]} 78. Kg5 {[%clk 0:00:04]}  Rg1+ {[%clk 0:00:05]} 79. Kf6 {[%clk 0:00:04]}  Kd3 {[%clk 0:00:05]} 80. f5 {[%clk 0:00:04]}  c2 {[%clk 0:00:05]} 81. Kf7 {[%clk 0:00:04]}  c1=Q {[%clk 0:00:06]} 82. Rxc1 {[%clk 0:00:04]}  Rxc1 {[%clk 0:00:07]} 83. f6 {[%clk 0:00:05]}  Ke4 {[%clk 0:00:07]} 84. Kg7 {[%clk 0:00:05]}  Rg1+ {[%clk 0:00:07]} 85. Kh8 {[%clk 0:00:05]}  Rh1+ {[%clk 0:00:07]} 86. Kg7 {[%clk 0:00:05]}  Rg1+ {[%clk 0:00:07]} 87. Kh8 {[%clk 0:00:06]}  Rf1 {[%clk 0:00:07]} 88. Kg7 {[%clk 0:00:06]}  Ke5 {[%clk 0:00:08]} 89. f7 {[%clk 0:00:06]}  Rg1+ {[%clk 0:00:08]} 90. Kh8 {[%clk 0:00:07]}  Rh1+ {[%clk 0:00:07]} 91. Kg8 {[%clk 0:00:07]}  Rg1+ {[%clk 0:00:07]} 92. Kh8 {[%clk 0:00:08]}  Rh1+ {[%clk 0:00:07]} 93. Kg8 {[%clk 0:00:08]}  Rg1+ {[%clk 0:00:07]} 94. Kh8 {[%clk 0:00:09]} 1/2-1/2


[Site "https://www.chess.com"]

[Event "Titled Tuesday Blitz March 29 Early 2022"]
[White "Le Ruyet, Leopold"]
[Black "Rastbod, Ali"]
[WhiteFideId "645923"]
[BlackFideId "12567477"]
[WhiteElo "2276"]
[BlackElo "2200"]
[Result "1-0"]
[Round "11"]
[TimeControl "180+1"]
[Date "2022.03.29"]
[WhiteClock "0:00:16"]
[BlackClock "0:00:11"]

1. d4 {[%clk 0:03:00]}  g6 {[%clk 0:02:55]} 2. c4 {[%clk 0:02:59]}  Bg7 {[%clk 0:02:56]} 3. Nc3 {[%clk 0:03:00]}  d6 {[%clk 0:02:56]} 4. e4 {[%clk 0:03:00]}  Nc6 {[%clk 0:02:56]} 5. Be3 {[%clk 0:02:58]}  e5 {[%clk 0:02:55]} 6. Nge2 {[%clk 0:02:54]}  exd4 {[%clk 0:02:47]} 7. Nxd4 {[%clk 0:02:54]}  Nge7 {[%clk 0:02:47]} 8. Be2 {[%clk 0:02:52]}  O-O {[%clk 0:02:42]} 9. h4 {[%clk 0:02:46]}  h5 {[%clk 0:02:39]} 10. Qd2 {[%clk 0:02:40]}  Ne5 {[%clk 0:02:34]} 11. f3 {[%clk 0:02:30]}  N7c6 {[%clk 0:02:33]} 12. O-O-O {[%clk 0:02:28]}  Nxd4 {[%clk 0:02:27]} 13. Bxd4 {[%clk 0:02:27]}  Be6 {[%clk 0:02:28]} 14. Nd5 {[%clk 0:02:25]}  c6 {[%clk 0:02:22]} 15. Ne3 {[%clk 0:02:24]}  Qc7 {[%clk 0:02:16]} 16. f4 {[%clk 0:02:17]}  Rfd8 {[%clk 0:01:54]} 17. Bc3 {[%clk 0:02:00]}  Bh6 {[%clk 0:01:48]} 18. g3 {[%clk 0:01:50]}  Nd7 {[%clk 0:01:36]} 19. f5 {[%clk 0:01:20]}  gxf5 {[%clk 0:01:25]} 20. exf5 {[%clk 0:01:20]}  Bxf5 {[%clk 0:01:23]} 21. Bxh5 {[%clk 0:01:15]}  Re8 {[%clk 0:01:15]} 22. Rde1 {[%clk 0:01:07]}  Nc5 {[%clk 0:01:05]} 23. Qd4 {[%clk 0:00:51]}  Re5 {[%clk 0:00:57]} 24. Kd1 {[%clk 0:00:49]}  Ne6 {[%clk 0:00:47]} 25. Qd2 {[%clk 0:00:42]}  Bh7 {[%clk 0:00:36]} 26. g4 {[%clk 0:00:36]}  Bf4 {[%clk 0:00:25]} 27. Rhf1 {[%clk 0:00:20]}  Rd8 {[%clk 0:00:18]} 28. g5 {[%clk 0:00:19]}  Qb6 {[%clk 0:00:17]} 29. Rxf4 {[%clk 0:00:19]}  Nxf4 {[%clk 0:00:16]} 30. Ng4 {[%clk 0:00:19]}  Rxe1+ {[%clk 0:00:16]} 31. Qxe1 {[%clk 0:00:19]}  Bf5 {[%clk 0:00:12]} 32. Nh6+ {[%clk 0:00:18]}  Kf8 {[%clk 0:00:12]} 33. Nxf5 {[%clk 0:00:19]}  Nd3 {[%clk 0:00:12]} 34. Qe7+ {[%clk 0:00:16]}  Kg8 {[%clk 0:00:12]} 35. Nh6+ {[%clk 0:00:15]}  Kh7 {[%clk 0:00:11]} 36. Qxf7# {[%clk 0:00:16]} 1-0


[Site "https://www.chess.com"]

[Event "Titled Tuesday Blitz March 29 Early 2022"]
[White "Martin, Lewis"]
[Black "Ardila, Oscar Humberto"]
[WhiteFideId "410551"]
[BlackFideId "4404742"]
[WhiteElo "2145"]
[BlackElo "1966"]
[Result "0-1"]
[Round "11"]
[TimeControl "180+1"]
[Date "2022.03.30"]
[WhiteClock "0:01:41"]
[BlackClock "0:02:21"]

1. e4 {[%clk 0:03:00]}  e5 {[%clk 0:02:59]} 2. Nf3 {[%clk 0:03:00]}  Nf6 {[%clk 0:03:00]} 3. Nc3 {[%clk 0:02:59]}  Nc6 {[%clk 0:03:00]} 4. Bb5 {[%clk 0:02:58]}  Bb4 {[%clk 0:02:59]} 5. O-O {[%clk 0:02:53]}  O-O {[%clk 0:02:59]} 6. Re1 {[%clk 0:02:52]}  d6 {[%clk 0:02:59]} 7. a3 {[%clk 0:02:47]}  Ba5 {[%clk 0:02:57]} 8. b4 {[%clk 0:02:47]}  Bb6 {[%clk 0:02:58]} 9. h3 {[%clk 0:02:47]}  Nd4 {[%clk 0:02:56]} 10. Nxd4 {[%clk 0:02:43]}  Bxd4 {[%clk 0:02:56]} 11. Bb2 {[%clk 0:02:36]}  c6 {[%clk 0:02:54]} 12. Bc4 {[%clk 0:02:35]}  a5 {[%clk 0:02:51]} 13. Na4 {[%clk 0:02:20]}  axb4 {[%clk 0:02:46]} 14. axb4 {[%clk 0:02:18]}  b5 {[%clk 0:02:44]} 15. Bxd4 {[%clk 0:02:16]}  exd4 {[%clk 0:02:39]} 16. Nb2 {[%clk 0:01:55]}  Rxa1 {[%clk 0:02:37]} 17. Qxa1 {[%clk 0:01:55]}  bxc4 {[%clk 0:02:37]} 18. Nxc4 {[%clk 0:01:56]}  Be6 {[%clk 0:02:36]} 19. Na5 {[%clk 0:01:54]}  Qb6 {[%clk 0:02:35]} 20. c3 {[%clk 0:01:51]}  Rb8 {[%clk 0:02:30]} 21. Qa4 {[%clk 0:01:47]}  dxc3 {[%clk 0:02:27]} 22. Nxc6 {[%clk 0:01:41]}  Bd7 {[%clk 0:02:21]} 0-1


[Site "https://www.chess.com"]

[Event "Titled Tuesday Blitz March 29 Early 2022"]
[White "Melikhov, Evgeny V."]
[Black "Chernomordik, Pavel"]
[WhiteFideId "4122046"]
[BlackFideId "2804530"]
[WhiteElo "1945"]
[BlackElo "2249"]
[Result "1/2-1/2"]
[Round "11"]
[TimeControl "180+1"]
[Date "2022.03.30"]
[WhiteClock "0:01:19"]
[BlackClock "0:01:22"]

1. d4 {[%clk 0:02:59]}  g6 {[%clk 0:02:59]} 2. c4 {[%clk 0:02:58]}  Bg7 {[%clk 0:02:59]} 3. Nc3 {[%clk 0:02:58]}  d6 {[%clk 0:02:58]} 4. e4 {[%clk 0:02:58]}  c6 {[%clk 0:02:58]} 5. f3 {[%clk 0:02:57]}  a6 {[%clk 0:02:57]} 6. Be3 {[%clk 0:02:56]}  b5 {[%clk 0:02:57]} 7. Bd3 {[%clk 0:02:55]}  Nd7 {[%clk 0:02:53]} 8. Nge2 {[%clk 0:02:55]}  bxc4 {[%clk 0:02:46]} 9. Bxc4 {[%clk 0:02:55]}  Nb6 {[%clk 0:02:45]} 10. Bb3 {[%clk 0:02:49]}  a5 {[%clk 0:02:44]} 11. O-O {[%clk 0:02:41]}  Ba6 {[%clk 0:02:43]} 12. Rc1 {[%clk 0:02:23]}  Nf6 {[%clk 0:02:35]} 13. Na4 {[%clk 0:02:17]}  Bb5 {[%clk 0:02:26]} 14. Nxb6 {[%clk 0:02:07]}  Qxb6 {[%clk 0:02:25]} 15. Bxf7+ {[%clk 0:02:02]}  Kxf7 {[%clk 0:02:22]} 16. Qb3+ {[%clk 0:02:02]}  e6 {[%clk 0:01:58]} 17. a4 {[%clk 0:02:01]}  Rhc8 {[%clk 0:01:52]} 18. axb5 {[%clk 0:02:00]}  Qxb5 {[%clk 0:01:51]} 19. Qxb5 {[%clk 0:01:43]}  cxb5 {[%clk 0:01:50]} 20. Rxc8 {[%clk 0:01:43]}  Rxc8 {[%clk 0:01:50]} 21. Nc3 {[%clk 0:01:34]}  b4 {[%clk 0:01:41]} 22. Na4 {[%clk 0:01:34]}  Nd7 {[%clk 0:01:37]} 23. f4 {[%clk 0:01:22]}  d5 {[%clk 0:01:28]} 24. e5 {[%clk 0:01:22]}  Bf8 {[%clk 0:01:22]} 25. Rc1 {[%clk 0:01:19]} 1/2-1/2


[Site "https://www.chess.com"]

[Event "Titled Tuesday Blitz March 29 Early 2022"]
[White "Mikhnenko, Alexander"]
[Black "Hernandez Jimenez, Alexander Andres"]
[WhiteFideId "34143014"]
[BlackFideId "3900452"]
[WhiteElo "2184"]
[BlackElo "2082"]
[Result "0-1"]
[Round "11"]
[TimeControl "180+1"]
[Date "2022.03.30"]
[WhiteClock "0:01:23"]
[BlackClock "0:00:31"]

1. e4 {[%clk 0:03:00]}  c5 {[%clk 0:02:58]} 2. Nf3 {[%clk 0:03:00]}  d6 {[%clk 0:02:59]} 3. d4 {[%clk 0:03:00]}  cxd4 {[%clk 0:02:59]} 4. Nxd4 {[%clk 0:03:01]}  Nf6 {[%clk 0:02:59]} 5. Nc3 {[%clk 0:03:01]}  a6 {[%clk 0:03:00]} 6. h3 {[%clk 0:03:01]}  e5 {[%clk 0:03:00]} 7. Nde2 {[%clk 0:03:00]}  h5 {[%clk 0:03:00]} 8. Bg5 {[%clk 0:02:58]}  Be7 {[%clk 0:02:59]} 9. g3 {[%clk 0:02:58]}  Be6 {[%clk 0:02:58]} 10. Bg2 {[%clk 0:02:58]}  Nbd7 {[%clk 0:02:59]} 11. O-O {[%clk 0:02:58]}  Rc8 {[%clk 0:03:00]} 12. f4 {[%clk 0:02:57]}  exf4 {[%clk 0:02:59]} 13. gxf4 {[%clk 0:02:58]}  Nh7 {[%clk 0:02:26]} 14. Bxe7 {[%clk 0:02:55]}  Qxe7 {[%clk 0:02:26]} 15. Kh1 {[%clk 0:02:53]}  Nhf6 {[%clk 0:02:19]} 16. Nd4 {[%clk 0:02:51]}  b5 {[%clk 0:02:13]} 17. Re1 {[%clk 0:02:48]}  b4 {[%clk 0:02:12]} 18. Nd5 {[%clk 0:02:48]}  Qd8 {[%clk 0:02:11]} 19. e5 {[%clk 0:02:28]}  dxe5 {[%clk 0:02:07]} 20. fxe5 {[%clk 0:02:26]}  Nxd5 {[%clk 0:02:05]} 21. Nxe6 {[%clk 0:02:24]}  fxe6 {[%clk 0:02:04]} 22. Bxd5 {[%clk 0:02:23]}  exd5 {[%clk 0:02:03]} 23. Qxd5 {[%clk 0:02:22]}  Qc7 {[%clk 0:01:47]} 24. Qe6+ {[%clk 0:02:19]}  Kd8 {[%clk 0:01:47]} 25. Rad1 {[%clk 0:02:05]}  Qc6+ {[%clk 0:01:44]} 26. Qxc6 {[%clk 0:02:05]}  Rxc6 {[%clk 0:01:45]} 27. e6 {[%clk 0:02:06]}  Rc7 {[%clk 0:01:34]} 28. exd7 {[%clk 0:02:06]}  Rxd7 {[%clk 0:01:34]} 29. Rxd7+ {[%clk 0:02:07]}  Kxd7 {[%clk 0:01:35]} 30. Rg1 {[%clk 0:02:08]}  Rg8 {[%clk 0:01:25]} 31. Rg6 {[%clk 0:02:07]}  a5 {[%clk 0:01:23]} 32. b3 {[%clk 0:02:07]}  Ke7 {[%clk 0:01:17]} 33. Rg5 {[%clk 0:02:06]}  g6 {[%clk 0:01:10]} 34. Rxa5 {[%clk 0:02:02]}  Rc8 {[%clk 0:01:10]} 35. Re5+ {[%clk 0:01:59]}  Kf6 {[%clk 0:01:09]} 36. Re2 {[%clk 0:01:59]}  Kf5 {[%clk 0:01:07]} 37. Kg2 {[%clk 0:01:51]}  g5 {[%clk 0:01:01]} 38. a4 {[%clk 0:01:38]}  bxa3 {[%clk 0:00:59]} 39. c4 {[%clk 0:01:38]}  Ra8 {[%clk 0:00:49]} 40. Ra2 {[%clk 0:01:33]}  Ke4 {[%clk 0:00:49]} 41. c5 {[%clk 0:01:32]}  Kd5 {[%clk 0:00:48]} 42. b4 {[%clk 0:01:31]}  Kc4 {[%clk 0:00:49]} 43. c6 {[%clk 0:01:27]}  Kxb4 {[%clk 0:00:48]} 44. c7 {[%clk 0:01:27]}  Kb3 {[%clk 0:00:38]} 45. Rd2 {[%clk 0:01:28]}  Rc8 {[%clk 0:00:33]} 46. Rd3+ {[%clk 0:01:25]}  Kb2 {[%clk 0:00:32]} 47. Rd2+ {[%clk 0:01:25]}  Kb1 {[%clk 0:00:31]} 48. Rd1+ {[%clk 0:01:24]}  Kc2 {[%clk 0:00:31]} 49. Ra1 {[%clk 0:01:23]}  Kb2 {[%clk 0:00:31]} 0-1


[Site "https://www.chess.com"]

[Event "Titled Tuesday Blitz March 29 Early 2022"]
[White "Namitbir Singh Walia"]
[Black "Estrada Nieto, Julian"]
[WhiteFideId "35071068"]
[BlackFideId "5101018"]
[WhiteElo "1565"]
[BlackElo "2246"]
[Result "0-1"]
[Round "11"]
[TimeControl "180+1"]
[Date "2022.03.30"]
[WhiteClock "0:02:33"]
[BlackClock "0:02:40"]

1. d4 {[%clk 0:03:00]}  d5 {[%clk 0:02:59]} 2. c4 {[%clk 0:03:00]}  dxc4 {[%clk 0:03:00]} 3. Nf3 {[%clk 0:03:00]}  Nf6 {[%clk 0:03:00]} 4. e3 {[%clk 0:02:59]}  e6 {[%clk 0:03:00]} 5. Bxc4 {[%clk 0:02:58]}  c5 {[%clk 0:03:01]} 6. O-O {[%clk 0:02:57]}  a6 {[%clk 0:03:01]} 7. a4 {[%clk 0:02:57]}  Nc6 {[%clk 0:03:01]} 8. Nc3 {[%clk 0:02:55]}  Be7 {[%clk 0:03:00]} 9. h3 {[%clk 0:02:50]}  O-O {[%clk 0:02:59]} 10. b3 {[%clk 0:02:34]}  cxd4 {[%clk 0:02:42]} 11. e4 {[%clk 0:02:33]}  dxc3 {[%clk 0:02:40]} 0-1


[Site "https://www.chess.com"]

[Event "Titled Tuesday Blitz March 29 Early 2022"]
[White "Ovezdurdyyeva, Jemal"]
[Black "Adewumi, Tanitoluwa"]
[WhiteFideId "14001888"]
[BlackFideId "30966396"]
[WhiteElo "1946"]
[BlackElo "2543"]
[Result "0-1"]
[Round "11"]
[TimeControl "180+1"]
[Date "2022.03.30"]
[WhiteClock "0:01:17"]
[BlackClock "0:01:18"]

1. e4 {[%clk 0:02:34]}  e6 {[%clk 0:02:55]} 2. d4 {[%clk 0:02:34]}  d5 {[%clk 0:02:56]} 3. Nc3 {[%clk 0:02:34]}  Nf6 {[%clk 0:02:47]} 4. e5 {[%clk 0:02:33]}  Nfd7 {[%clk 0:02:47]} 5. f4 {[%clk 0:02:33]}  c5 {[%clk 0:02:48]} 6. Nf3 {[%clk 0:02:32]}  Nc6 {[%clk 0:02:48]} 7. Be3 {[%clk 0:02:31]}  a6 {[%clk 0:02:49]} 8. Be2 {[%clk 0:02:22]}  b5 {[%clk 0:02:48]} 9. O-O {[%clk 0:02:19]}  b4 {[%clk 0:02:48]} 10. Na4 {[%clk 0:02:19]}  Qa5 {[%clk 0:02:47]} 11. b3 {[%clk 0:02:11]}  Bb7 {[%clk 0:02:44]} 12. Qe1 {[%clk 0:02:08]}  Rc8 {[%clk 0:02:38]} 13. Qf2 {[%clk 0:02:08]}  cxd4 {[%clk 0:02:37]} 14. Nxd4 {[%clk 0:02:07]}  Nxd4 {[%clk 0:02:37]} 15. Bxd4 {[%clk 0:02:07]}  Rxc2 {[%clk 0:02:38]} 16. Rfc1 {[%clk 0:02:05]}  Rc6 {[%clk 0:02:35]} 17. f5 {[%clk 0:02:01]}  Be7 {[%clk 0:02:07]} 18. Bg4 {[%clk 0:01:46]}  O-O {[%clk 0:01:50]} 19. Rxc6 {[%clk 0:01:40]}  Bxc6 {[%clk 0:01:50]} 20. fxe6 {[%clk 0:01:40]}  fxe6 {[%clk 0:01:50]} 21. Bxe6+ {[%clk 0:01:40]}  Kh8 {[%clk 0:01:51]} 22. Qc2 {[%clk 0:01:33]}  Bxa4 {[%clk 0:01:46]} 23. bxa4 {[%clk 0:01:34]}  Nxe5 {[%clk 0:01:42]} 24. Bxe5 {[%clk 0:01:29]}  Qb6+ {[%clk 0:01:41]} 25. Kh1 {[%clk 0:01:24]}  Qxe6 {[%clk 0:01:41]} 26. Re1 {[%clk 0:01:17]}  Qxe5 {[%clk 0:01:18]} 0-1


[Site "https://www.chess.com"]